[Event "EIWCC 2017"]
[Site "Riga"]
[Date "2017.04.19"]
[Round "8"]
[White "Zaksaite, Salomeja"]
[Black "Ovod, Evgenija"]
[Result "0-1"]
[ECO "C11"]
[WhiteElo "2262"]
[BlackElo "2382"]
[Annotator "NA"]
[PlyCount "76"]
[EventDate "2017.??.??"]
[EventType "swiss"]
[EventCountry "LAT"]
[SourceTitle "playchess.com"]
[Source "ChessBase"]
[SourceQuality "1"]
[TimeControl "40/5400+30:1800+30"]

{[%evp 8,46,0,32767,32767,32767,32767,9,32767,8,7,10,16,20,26,32767,32767,-2,0,-54,-66,-143,-150,-119,-118,-156,-62,-141,32767,-115,-149,-374,-363,-346,-358,-385,-367,-322,-113,-113,-58]} 1. e4 {[%emt 0:00:00]} e6 {[%emt 0:00:06]} 2. d4 {[%emt 0:00:00]} d5 {[%emt 0:00:07]} 3. Nc3 {[%emt 0:00:00]} Nf6 {[%emt 0:00:08]} 4. e5 {[%emt 0:00:44]} Nfd7 {[%emt 0:00:06]} 5. f4 {[%emt 0:00:23]} c5 {[%emt 0:00:07]} 6. Nf3 {[%emt 0:00:03]} Be7 {[%emt 0:00:10]} 7. Be2 {[%emt 0:08:56]} Nc6 {[%emt 0:02:24]} 8. Be3 {[%emt 0:00:22]} b6 {[%emt 0:00:08] C11: French: Classical System: 4 e5 and 4 Bg5 dxe4} 9. O-O {[%emt 0:01:03]} O-O {[%emt 0:00:05]} 10. Qe1 {[%emt 0:04:36]} f5 {[%emt 0:00:17] LiveBook: 9 Games} 11. exf6 Nxf6 {[%emt 0:00:06]} 12. Bb5 {[%emt 0:14:06]} Nb4 {[%emt 0:09:31]} 13. Rf2 $146 {[%emt 0:03:53]} (13. Rc1 a6 14. Be2 Ng4 15. Bd2 Nc6 16. Nd1 Nf6 {½-½ (62) Brkic,A (2606)-Tratar,M (2477) Bol 2011}) 13... a6 {[%emt 0:03:11]} 14. Bd3 {[%emt 0:05:43] [#]} (14. Ba4 $142) 14... Ng4 $1 {[%emt 0:13:50]} ({Much less strong is} 14... Nxd3 15. cxd3 Ng4 16. Rf1 $15) 15. Rd2 {[%emt 0:00:43]} Nc6 {[%emt 0:00:24]} 16. Na4 {[%emt 0:07:41]} Qc7 {[%emt 0:24:01]} (16... cxd4 $17 17. Bxd4 Nxd4 18. Nxd4 Qd6) 17. dxc5 {[%emt 0:06:43]} ({White should try} 17. c3 $1 $15) 17... bxc5 {[%emt 0:00:46]} 18. g3 {[%emt 0:08:37] [#]} e5 $1 {[%emt 0:21:00]} ({Reject} 18... Nxe3 $6 19. Qxe3 Qa5 20. b3 $15) 19. Nxe5 $2 {[%emt 0:05:10]} (19. Nc3 $17 {was the only chance.} Be6 20. h3 Nxe3 21. Qxe3) 19... Ncxe5 {[%emt 0:00:04]} 20. fxe5 {[%emt 0:00:03]} Nxe5 {[%emt 0:00:58]} 21. Be2 $19 {[%emt 0:01:36]} Qc6 {[%emt 0:01:01]} ({Inferior is} 21... Bd7 22. Nc3 d4 23. Nd5 $11) 22. Bf4 {[%emt 0:00:38]} Bf6 $2 {[%emt 0:14:37]} (22... Bg5 $19 {has better winning chances.} 23. Bxg5 d4 24. Nxc5 Qxc5) 23. Nc3 {[%emt 0:01:02]} Bb7 $15 {[%emt 0:05:01]} 24. Rxd5 {[%emt 0:13:07]} Rae8 {[%emt 0:00:21]} 25. Qd2 {[%emt 0:00:23]} Kh8 {[%emt 0:02:24]} 26. Rf1 {[%emt 0:01:47]} Ng6 {[%emt 0:00:10]} 27. Bf3 {[%emt 0:01:05]} Nxf4 {[%emt 0:01:20]} 28. gxf4 {[%emt 0:00:12]} Bd4+ {[%emt 0:01:01]} 29. Kh1 {[%emt 0:03:00]} Qf6 {[%emt 0:00:54]} 30. Rg5 {[%emt 0:03:38]} Qxg5 {[%emt 0:00:12]} 31. Bxb7 {[%emt 0:01:35]} Bxc3 {[%emt 0:00:43]} 32. bxc3 {[%emt 0:00:51]} Qf6 {[%emt 0:00:17]} 33. Bd5 {[%emt 0:02:00]} g5 {[%emt 0:00:07]} 34. f5 {[%emt 0:03:34]} Re5 {[%emt 0:00:02]} 35. Bg2 {[%emt 0:01:10]} Rxf5 {[%emt 0:00:12]} 36. Rb1 {[%emt 0:00:24]} Rf2 {[%emt 0:00:51]} 37. Qe3 {[%emt 0:00:30]} Rxc2 {[%emt 0:00:54]} 38. Qxc5 {[%emt 0:00:29]} Rxg2 {[%emt 0:00:29]} 0-1

[Event "EIWCC 2017"]
[Site "Riga"]
[Date "2017.04.19"]
[Round "8"]
[White "Calzetta Ruiz, Monica"]
[Black "Papp, Petra"]
[Result "0-1"]
[ECO "C77"]
[WhiteElo "2257"]
[BlackElo "2378"]
[Annotator "NA"]
[PlyCount "58"]
[EventDate "2017.??.??"]
[EventType "swiss"]
[EventCountry "LAT"]
[SourceTitle "playchess.com"]
[Source "ChessBase"]
[SourceQuality "1"]
[TimeControl "40/5400+30:1800+30"]

{[%evp 9,51,14,32,17,19,9,22,6,12,32767,16,21,18,-10,60,-1,6,0,0,-6,0,-30,-28,-19,-10,-8,-19,32767,32767,-107,-99,-101,-42,32767,32767,32767,32767,32767,32767,32767,32767,-389,32767,-364]} 1. e4 {[%emt 0:00:00]} e5 {[%emt 0:00:51]} 2. Nf3 {[%emt 0:00:00]} Nc6 {[%emt 0:00:09]} 3. Bb5 {[%emt 0:00:00]} a6 {[%emt 0:00:05]} 4. Ba4 {[%emt 0:00:00]} Nf6 {[%emt 0:00:07]} 5. d3 {[%emt 0:00:00]} d6 {[%emt 0:01:23]} 6. c4 {[%emt 0:00:09]} Bg4 {[%emt 0:05:03] C77: Ruy Lopez: 3...a6 4 Ba4 Nf6, unusual lines} (6... g6 7. Nc3 Bg7 8. Nd5 Nd7 9. Bg5 f6 10. Be3 O-O 11. O-O Kh8 12. Re1 Rf7 13. h3 Nc5 14. Bxc5 dxc5 15. Bxc6 bxc6 {1-0 (74) Filippov,A (2582)-Buhmann,R (2640) Baku 2016}) 7. h3 {[%emt 0:03:43]} Bxf3 {[%emt 0:01:25]} 8. Qxf3 {[%emt 0:00:06] LiveBook: 10 Games} Nd7 {[%emt 0:00:12]} 9. Be3 {[%emt 0:15:28]} g6 {[%emt 0:14:37]} 10. Nc3 {[%emt 0:11:11]} Bg7 {[%emt 0:05:23]} 11. O-O {[%emt 0:19:01]} Nf8 $146 {[%emt 0:18:10]} (11... Nd4 $11 12. Bxd4 (12. Bxd7+ Qxd7 13. Qg4 Ne6 14. Nd5 b5 15. Qh4 Qd8 16. Qxd8+ Kxd8 {½-½ (16) Pachman,L-Donner,J Venice 1950}) 12... exd4 13. Bxd7+ Qxd7) 12. Qd1 {[%emt 0:17:37]} Ne6 $1 {[%emt 0:06:21]} 13. Qb3 {[%emt 0:02:36]} O-O {[%emt 0:20:36]} 14. Qxb7 {[%emt 0:02:19]} Ncd4 {[%emt 0:06:47]} 15. Bxd4 {[%emt 0:01:30]} exd4 {[%emt 0:01:35]} 16. Nd5 {[%emt 0:00:56]} Nc5 {[%emt 0:01:01]} 17. Qc6 {[%emt 0:02:18]} (17. Qxc7 $2 Nxa4 18. Qxd8 Rfxd8 $17) 17... Nxd3 {[%emt 0:01:20]} 18. Qxc7 {[%emt 0:10:56]} Nxb2 {[%emt 0:00:52]} 19. Qxd8 {[%emt 0:00:34]} Rfxd8 {[%emt 0:00:48]} 20. Bb3 {[%emt 0:00:33]} a5 {[%emt 0:02:14]} 21. Rab1 {[%emt 0:04:43]} d3 {[%emt 0:01:39]} 22. Nb6 {[%emt 0:00:02]} a4 {[%emt 0:03:29]} 23. Nxa8 {[%emt 0:00:03]} axb3 {[%emt 0:00:14]} 24. Nb6 {[%emt 0:00:17]} bxa2 {[%emt 0:00:24]} 25. Ra1 {[%emt 0:01:22]} d2 {[%emt 0:01:05]} 26. Rxa2 $19 {[%emt 0:01:38]} d1=Q {[%emt 0:00:21]} 27. Rxd1 {[%emt 0:00:02]} Nxd1 {[%emt 0:00:07]} 28. Rd2 {[%emt 0:00:15]} Nc3 {[%emt 0:00:36]} 29. f3 {[%emt 0:00:01]} Bd4+ {[%emt 0:00:18]} 0-1

[Event "EIWCC 2017"]
[Site "Riga"]
[Date "2017.04.19"]
[Round "8"]
[White "Ivanenko, Olga I"]
[Black "Kovanova, Baira"]
[Result "1/2-1/2"]
[ECO "A01"]
[WhiteElo "2252"]
[BlackElo "2376"]
[Annotator "ChessBase"]
[PlyCount "82"]
[EventDate "2017.??.??"]
[EventType "swiss"]
[EventCountry "LAT"]
[SourceTitle "playchess.com"]
[Source "ChessBase"]
[SourceQuality "1"]
[TimeControl "40/5400+30:1800+30"]

1. b3 {[%emt 0:00:00]} e5 {[%emt 0:00:56]} 2. Bb2 {[%emt 0:00:00]} Nc6 {[%emt 0:00:30]} 3. e3 {[%emt 0:00:00]} Nf6 {[%emt 0:03:28]} 4. Bb5 {[%emt 0:00:23]} d6 {[%emt 0:01:20]} 5. d4 {[%emt 0:01:41]} exd4 {[%emt 0:01:16]} 6. Qxd4 {[%emt 0:00:28]} Bd7 {[%emt 0:01:19]} 7. Bxc6 {[%emt 0:05:12]} Bxc6 {[%emt 0:01:25]} 8. f3 {[%emt 0:06:59]} d5 {[%emt 0:06:55]} 9. Nc3 {[%emt 0:01:03]} Bd6 {[%emt 0:01:44]} 10. O-O-O {[%emt 0:00:54]} Qe7 {[%emt 0:01:18]} 11. Re1 {[%emt 0:15:09]} Bc5 {[%emt 0:03:38]} 12. Qd2 {[%emt 0:01:13]} O-O-O {[%emt 0:04:15]} 13. Nh3 {[%emt 0:14:23]} Rhe8 {[%emt 0:04:24]} 14. Nd1 {[%emt 0:00:23]} Qd6 {[%emt 0:09:15]} 15. Nhf2 {[%emt 0:03:22]} Rd7 {[%emt 0:02:36]} 16. Nd3 {[%emt 0:06:07]} Bb6 {[%emt 0:12:17]} 17. Bd4 {[%emt 0:06:14]} Bb5 {[%emt 0:03:12]} 18. Bxb6 {[%emt 0:01:11]} Qxb6 {[%emt 0:05:54]} 19. Qc3 {[%emt 0:06:57]} Bxd3 {[%emt 0:02:11]} 20. Qxd3 {[%emt 0:03:25]} Qa5 {[%emt 0:03:27]} 21. Nc3 {[%emt 0:06:02]} Rde7 {[%emt 0:06:37]} 22. Kb1 {[%emt 0:07:14]} Re6 {[%emt 0:05:44]} 23. Re2 {[%emt 0:00:49]} Rd8 {[%emt 0:04:37]} 24. Rd1 {[%emt 0:00:50]} Red6 {[%emt 0:01:29]} 25. Qf5+ {[%emt 0:01:54]} Kb8 {[%emt 0:00:41]} 26. Kb2 {[%emt 0:00:36]} Rc6 {[%emt 0:04:20]} 27. Rd3 {[%emt 0:00:47]} Ra6 {[%emt 0:01:30]} 28. g4 {[%emt 0:04:52]} Qa3+ {[%emt 0:00:30]} 29. Kb1 {[%emt 0:00:04]} Ra5 {[%emt 0:02:04]} 30. Red2 {[%emt 0:03:58]} h6 {[%emt 0:02:02]} 31. h4 {[%emt 0:00:17]} Rd6 {[%emt 0:02:27]} 32. Rd4 {[%emt 0:00:18]} Rc6 {[%emt 0:01:09]} 33. Ra4 {[%emt 0:01:23]} Rxa4 {[%emt 0:00:11]} 34. Nxa4 {[%emt 0:00:03]} b5 {[%emt 0:00:12]} 35. g5 {[%emt 0:01:27]} bxa4 {[%emt 0:01:37]} 36. gxf6 {[%emt 0:00:05]} axb3 {[%emt 0:00:10]} 37. axb3 {[%emt 0:00:07]} Ra6 {[%emt 0:01:15]} 38. Qe5 {[%emt 0:00:14]} Qa2+ {[%emt 0:00:31]} 39. Kc1 {[%emt 0:00:03]} Qa3+ {[%emt 0:00:33]} 40. Kb1 {[%emt 0:00:00]} Qa2+ {[%emt 0:00:09]} 41. Kc1 {[%emt 0:02:08]} Qa3+ {[%emt 0:06:58]} 1/2-1/2

[Event "EIWCC 2017"]
[Site "Riga"]
[Date "2017.04.19"]
[Round "8"]
[White "Komiagina, Maria"]
[Black "Khomeriki, Nino"]
[Result "0-1"]
[ECO "C77"]
[WhiteElo "2247"]
[BlackElo "2308"]
[Annotator "NA"]
[PlyCount "88"]
[EventDate "2017.??.??"]
[EventType "swiss"]
[EventCountry "LAT"]
[SourceTitle "playchess.com"]
[Source "ChessBase"]
[SourceQuality "1"]
[TimeControl "40/5400+30:1800+30"]

1. e4 {[%emt 0:00:00]} e5 {[%emt 0:02:54]} 2. Nf3 {[%emt 0:00:00]} Nc6 {[%emt 0:00:12]} 3. Bb5 {[%emt 0:00:00]} a6 {[%emt 0:00:11]} 4. Ba4 {[%emt 0:00:00]} Nf6 {[%emt 0:00:06]} 5. d3 {[%emt 0:00:04]} d6 {[%emt 0:05:31]} 6. c3 {[%emt 0:00:07]} Be7 {[%emt 0:00:38]} 7. O-O {[%emt 0:00:17]} O-O {[%emt 0:00:14]} 8. Re1 {[%emt 0:00:22]} b5 {[%emt 0:01:32]} 9. Bc2 {[%emt 0:00:37]} Re8 {[%emt 0:03:41]} 10. Nbd2 {[%emt 0:00:16]} Bf8 {[%emt 0:00:06] LiveBook: 93 Games} 11. d4 {[%emt 0:00:40]} Bb7 {[%emt 0:04:42] C91: Closed Ruy Lopez: 7...d6 8 c3 0-0 9 d4} 12. d5 {[%emt 0:00:25]} (12. a3 Nb8 13. b3 Nbd7 14. Bb2 g6 15. a4 Bg7 16. Bd3 c6 {½-½ (56) Motylev,A (2649)-Dominguez Perez,L (2732) Berlin 2015}) 12... Nb8 {[%emt 0:01:10]} 13. c4 {[%emt 0:01:28]} c6 {[%emt 0:03:59]} 14. b3 {[%emt 0:00:38]} Nbd7 {[%emt 0:01:53]} 15. Bb2 {[%emt 0:01:34]} Qb8 $146 {[%emt 0:09:49]} (15... Qc7 16. Nf1 Rec8 17. Ne3 cxd5 18. cxd5 {½-½ (41) Klenburg,M (2407)-Zilberman,Y (2459) Ashdod 2004}) 16. Rb1 {[%emt 0:04:07]} Qa7 {[%emt 0:03:13]} 17. h3 {[%emt 0:00:34]} Rac8 {[%emt 0:00:36]} 18. Nf1 {[%emt 0:01:27]} Nc5 {[%emt 0:11:10]} 19. Ng3 {[%emt 0:05:42]} a5 {[%emt 0:05:17]} 20. Qd2 {[%emt 0:14:42]} Qb6 {[%emt 0:12:52]} 21. Bc3 {[%emt 0:03:15]} Ra8 {[%emt 0:03:07]} 22. Nf5 {[%emt 0:02:10]} Bc8 {[%emt 0:01:31]} 23. g4 {[%emt 0:11:24]} Bxf5 {[%emt 0:03:36]} 24. exf5 {[%emt 0:02:08]} b4 {[%emt 0:00:46]} 25. Bb2 {[%emt 0:00:31]} cxd5 {[%emt 0:00:34]} 26. cxd5 {[%emt 0:00:16]} e4 {[%emt 0:06:56]} (26... h6 $15) 27. Ng5 {[%emt 0:04:30]} Be7 {[%emt 0:04:35]} 28. Nxe4 {[%emt 0:03:34]} Nfxe4 {[%emt 0:00:13]} 29. Bxe4 {[%emt 0:00:05]} Bh4 {[%emt 0:02:00]} 30. Bc2 {[%emt 0:01:29]} h6 {[%emt 0:01:32]} 31. Rxe8+ {[%emt 0:09:45]} Rxe8 {[%emt 0:00:15]} 32. Re1 {[%emt 0:00:07]} Bxf2+ {[%emt 0:01:52]} 33. Qxf2 {[%emt 0:02:04]} Rxe1+ {[%emt 0:00:07]} 34. Kh2 $19 {[%emt 0:07:05]} Re8 {[%emt 0:00:22]} 35. Bd3 {[%emt 0:00:12]} Qb7 {[%emt 0:01:33]} 36. Bc4 {[%emt 0:00:37]} f6 {[%emt 0:03:01]} 37. Bd4 {[%emt 0:02:34]} Nd7 {[%emt 0:01:00]} 38. Qg2 {[%emt 0:02:34]} Ne5 {[%emt 0:00:56]} 39. Bf1 {[%emt 0:00:14]} Qc7 {[%emt 0:01:00]} 40. Bb5 {[%emt 0:00:00]} Rb8 {[%emt 0:01:47]} 41. Bf1 {[%emt 0:06:28]} Qc1 {[%emt 0:03:15]} 42. Bxe5 {[%emt 0:00:12]} fxe5 {[%emt 0:00:08]} 43. Bc4 {[%emt 0:05:26]} Qf4+ {[%emt 0:00:36]} 44. Qg3 {[%emt 0:01:25]} Rc8 {[%emt 0:01:01]} 0-1

[Event "EIWCC 2017"]
[Site "Riga"]
[Date "2017.04.19"]
[Round "8"]
[White "Mammadova, Narmin"]
[Black "Savina, Anastasia"]
[Result "1/2-1/2"]
[ECO "B00"]
[WhiteElo "2240"]
[BlackElo "2378"]
[Annotator "ChessBase"]
[PlyCount "137"]
[EventDate "2017.??.??"]
[EventType "swiss"]
[EventCountry "LAT"]
[SourceTitle "playchess.com"]
[Source "ChessBase"]
[SourceQuality "1"]
[TimeControl "40/5400+30:1800+30"]

1. e4 {[%emt 0:00:00]} e6 {[%emt 0:00:07]} 2. d4 {[%emt 0:00:00]} d5 {[%emt 0:00:05]} 3. Nd2 {[%emt 0:00:00]} c5 {[%emt 0:00:06]} 4. exd5 {[%emt 0:00:10]} exd5 {[%emt 0:00:04]} 5. Ngf3 {[%emt 0:00:15]} Nc6 {[%emt 0:00:16]} 6. Bb5 {[%emt 0:00:14]} cxd4 {[%emt 0:00:08]} 7. Nxd4 {[%emt 0:00:42]} Qe7+ {[%emt 0:00:11]} 8. Kf1 {[%emt 0:00:24]} Qc7 {[%emt 0:07:26]} 9. Qe2+ {[%emt 0:05:14]} Be7 {[%emt 0:00:19]} 10. N2f3 {[%emt 0:00:09]} Bd7 {[%emt 0:01:38]} 11. Bg5 {[%emt 0:00:12]} Nxd4 {[%emt 0:13:20]} 12. Nxd4 {[%emt 0:05:40]} Kf8 {[%emt 0:00:20]} 13. Bxe7+ {[%emt 0:03:36]} Nxe7 {[%emt 0:00:07]} 14. Bxd7 {[%emt 0:06:28]} Qxd7 {[%emt 0:00:05]} 15. Rd1 {[%emt 0:02:53]} h5 {[%emt 0:02:35]} 16. h4 {[%emt 0:01:08]} Nc6 {[%emt 0:13:28]} 17. Rh3 {[%emt 0:02:35]} Rh6 {[%emt 0:02:23]} 18. Re3 {[%emt 0:07:29]} Kg8 {[%emt 0:05:39]} 19. Kg1 {[%emt 0:10:32]} Rd8 {[%emt 0:14:43]} 20. c3 {[%emt 0:02:47]} a6 {[%emt 0:09:57]} 21. Nxc6 {[%emt 0:01:23]} bxc6 {[%emt 0:04:39]} 22. Qxa6 {[%emt 0:00:46]} Re6 {[%emt 0:00:56]} 23. Rxe6 {[%emt 0:11:15]} Qxe6 {[%emt 0:00:10]} 24. a4 {[%emt 0:01:45]} Re8 {[%emt 0:02:18]} 25. a5 {[%emt 0:07:28]} Qg6 {[%emt 0:02:17]} 26. Ra1 {[%emt 0:05:53]} Rb8 {[%emt 0:07:55]} 27. Qe2 {[%emt 0:01:37]} c5 {[%emt 0:01:59]} 28. Qd2 {[%emt 0:13:35]} Qc6 {[%emt 0:02:21]} 29. b4 {[%emt 0:01:33]} g6 {[%emt 0:05:15]} 30. bxc5 {[%emt 0:05:37]} Qxc5 {[%emt 0:01:43]} 31. a6 {[%emt 0:00:05]} Ra8 {[%emt 0:00:16]} 32. Qd4 {[%emt 0:03:00]} Qb5 {[%emt 0:01:55]} 33. a7 {[%emt 0:00:20]} Qb2 {[%emt 0:00:32]} 34. Ra5 {[%emt 0:01:14]} Kh7 {[%emt 0:00:32]} 35. g3 {[%emt 0:00:42]} Qb7 {[%emt 0:00:52]} 36. Kh2 {[%emt 0:00:30]} f6 {[%emt 0:00:12]} 37. Ra1 {[%emt 0:00:39]} Kg7 {[%emt 0:01:07]} 38. Ra5 {[%emt 0:00:35]} Kh7 {[%emt 0:00:21]} 39. Ra2 {[%emt 0:00:33]} Kg7 {[%emt 0:00:25]} 40. Qc5 {[%emt 0:00:00]} Kh7 {[%emt 0:00:49]} 41. Qe3 {[%emt 0:20:42]} Kg7 {[%emt 0:01:04]} 42. Ra5 {[%emt 0:01:01]} Kh7 {[%emt 0:02:48]} 43. Qd4 {[%emt 0:00:24]} f5 {[%emt 0:12:03]} 44. Ra2 {[%emt 0:03:57]} f4 {[%emt 0:10:28]} 45. gxf4 {[%emt 0:00:44]} Qc7 {[%emt 0:00:38]} 46. Kg2 {[%emt 0:02:25]} Qd7 {[%emt 0:00:39]} 47. f3 {[%emt 0:00:31]} Qe7 {[%emt 0:00:18]} 48. Qxd5 {[%emt 0:02:20]} Rxa7 {[%emt 0:00:08]} 49. Rxa7 {[%emt 0:00:03]} Qxa7 {[%emt 0:00:05]} 50. f5 {[%emt 0:00:43]} gxf5 {[%emt 0:02:50]} 51. Qxf5+ {[%emt 0:00:13]} Kg7 {[%emt 0:00:08]} 52. Qe5+ {[%emt 0:01:42]} Kg8 {[%emt 0:00:32]} 53. Qxh5 {[%emt 0:01:44]} Qa3 {[%emt 0:01:17]} 54. Qg6+ {[%emt 0:00:23]} Kh8 {[%emt 0:00:22]} 55. Qf6+ {[%emt 0:00:06]} Kh7 {[%emt 0:00:16]} 56. h5 {[%emt 0:00:41]} Qb2+ {[%emt 0:00:11]} 57. Kg3 {[%emt 0:00:34]} Qb8+ {[%emt 0:00:12]} 58. Kg4 {[%emt 0:00:33]} Qh2 {[%emt 0:00:34]} 59. Qf5+ {[%emt 0:00:54]} Kh8 {[%emt 0:00:12]} 60. Qf4 {[%emt 0:00:48]} Qb2 {[%emt 0:01:33]} 61. Kf5 {[%emt 0:00:32]} Kh7 {[%emt 0:02:03]} 62. Qc7+ {[%emt 0:00:11]} Kh6 {[%emt 0:00:11]} 63. Qc6+ {[%emt 0:00:30]} Kh7 {[%emt 0:00:28]} 64. h6 {[%emt 0:00:45]} Qc2+ {[%emt 0:01:56]} 65. Qe4 {[%emt 0:00:32]} Qg2 {[%emt 0:00:24]} 66. Kf6+ {[%emt 0:00:25]} Kh8 {[%emt 0:00:10]} 67. Qe5 {[%emt 0:00:36]} Kh7 {[%emt 0:00:28]} 68. Qc7+ {[%emt 0:00:28]} Kxh6 {[%emt 0:00:56]} 69. Qf4+ {[%emt 0:00:06]} 1/2-1/2